Cogmind - Beta 15 @@@ ROGUE MODE // 2025.09.03 @ 17:13:53 Player: Gumbus Result: Destroyed by G-50 Soldier with Heavy Laser Performance ------------- Evolutions (2) 1000 Regions Visited (3) 600 Robots Destroyed (35) 175 Value Destroyed (1060) 1060 Prototype IDs (1) 20 Alien Tech Used (0) 0 Bonus (200) 200 TOTAL SCORE: 3055 Bonus ------- Pacifist 200 Cogmind --------- Core Integrity 0/550 Matter 300/300 Energy 89/100 System Corruption 0% Temperature Cool (9) Movement Core (200) Ox3 Location -8/Materials Parts ------- > --- POWER (3) -------- (None) > --- PROPULSION (3) --- (None) > --- UTILITY (3) ------ System Shield Field Recycling Unit > --- WEAPON (2) ------- Great Maul > --- INVENTORY (5) ---- (None) Peak State ------------ > --- POWER ------------ Ion Engine Light Deuterium Engine > --- PROPULSION ------- Wheel Compact Wheel > --- UTILITY ---------- Improved Heat Sink Particle Charger Particle Charger > --- WEAPON ----------- Ion Cannon Advanced EMP Blaster > --- INVENTORY -------- Light Nuclear Core Improved Weapon Shielding Improved Weapon Shielding System Shield Field Recycling Unit [Rating: 23] Favorites ----------- Power Ion Engine Engine Ion Engine Power Core Nuclear Core Propulsion Compact Wheel Wheel Compact Wheel Utility Improved Weapon Shielding Device Particle Charger Storage High-capacity Matter Pod Hackware System Shield Protection Improved Weapon Shielding Weapon Ion Cannon Energy Gun EM Pulse Gun Energy Cannon Ion Cannon Ballistic Gun Assault Rifle Ballistic Cannon Flak Cannon Launcher Grenade Launcher Impact Weapon Great Maul Build | -11 -10 -9 -8 ------- Run | Yrd Mat Mat Mat Slots Evolved 4 | . . 2 2 Power 2 | . . 1 1 Propulsion 1 | . . . 1 Utility 1 | . . 1 . Weapon . | . . . . Parts Attached 35 | 5 4 4 22 Power 8 | 1 . 1 6 Engine 4 | 1 . 1 2 Core 4 | . . . 4 Reactor . | . . . . Propulsion 4 | 2 . . 2 Treads . | . . . . Leg . | . . . . Wheel 4 | 2 . . 2 Hover . | . . . . Flight . | . . . . Utility 13 | . 2 3 8 Device 5 | . 1 1 3 Storage 2 | . . 1 1 Processor . | . . . . Hackware 1 | . . . 1 Protection 5 | . 1 1 3 Artifact . | . . . . Weapon 10 | 2 2 . 6 Energy Gun 1 | 1 . . . Energy Cannon 2 | . . . 2 Ballistic Gun 1 | 1 . . . Ballistic Cannon 1 | . . . 1 Launcher 4 | . 2 . 2 Special Weapon . | . . . . Impact Weapon 1 | . . . 1 Slashing Weapon . | . . . . Piercing Weapon . | . . . . Special Melee Weapon . | . . . . Unidentified Prototypes 1 | . . . 1 Parts Lost 16 | . . . 16 Power 5 | . . . 5 Propulsion 4 | . . . 4 Utility 6 | . . . 6 Weapon 1 | . . . 1 Highest Loss Streak 6 | . . . 6 To Critical Strikes . | . . . . Average Backups 2 | . 1 2 3 Power . | . 1 . . Propulsion . | . . . . Utility 2 | . . 2 3 Weapon . | . . . . Tool/Special . | . . . . Unused Backups 1 | . . 1 . Power . | . . . . Propulsion . | . . . . Utility 1 | . . 1 . Weapon . | . . . . Tool/Special . | . . . . Average Slot Usage (%) 72 | . 83 96 65 Engine 15 | . 14 22 13 Core 2 | . . . 3 Wheel 16 | . 28 22 13 Device 9 | . 5 10 9 Storage 1 | . . 4 1 Protection 7 | . 8 15 5 Energy Cannon 6 | . . . 9 Launcher 8 | . 11 20 5 Peak Build Rating 23 | 5 7 13 23 Average Rating 14 | 3 6 10 17 On Entrance 5 | . 5 7 11 Naked Turns . | . . . . Heaviest Build 42 | 9 13 30 42 Greatest Support 32 | 32 32 32 32 Greatest Overweight (x) 13 | . . . 13 Average Overweight (x) . | . . . 1 Largest Inventory Capacity 5 | 5 5 5 5 Average Capacity 5 | 5 5 5 5 Most Carried 5 | 2 3 5 5 Average Carried 2 | . 1 2 3 Final Capacity 5 | 5 5 5 5 Final Carried 4 | 1 1 4 . Class Distribution -------------------- 100% | Mutant Dominant Class ---------------- Mutant | -10/Materials Mutant | -9/Materials Mutant | -8/Materials Resources | -11 -10 -9 -8 ----------- Run | Yrd Mat Mat Mat Matter Collected 661 | 224 . 14 423 Remotely . | . . . . Salvage Created 1173 | . . 143 1030 Parts 54 | . . 8 46 Haulers Intercepted . | . . . . Recyclers Shooed . | . . . . Parts Field Recycled 26 | . . 4 22 Retrieved Matter 248 | . . 16 232 Parts Self-Destructed . | . . . . Prevented . | . . . . Kills | -11 -10 -9 -8 ------- Run | Yrd Mat Mat Mat Combat Hostiles Destroyed 25 | . . 6 19 Melee 4 | . . . 4 Cannons 6 | . . . 6 AOE 12 | . . 6 6 Classes Destroyed 9 | . . 4 5 Worker 1 | . . . 1 Builder 4 | . . 1 3 Recycler 2 | . . . 2 Watcher 3 | . . 1 2 Swarmer 6 | . . . 6 Grunt 12 | . . 5 7 Brawler 1 | . . . 1 Sentry 5 | . . 1 4 Hunter 1 | . . . 1 Best Kill Streak 7 | . . 7 5 Combat Bots Only 6 | . . 6 4 Max Kills in Single Turn 3 | . . 2 3 Gunslinging . | . . . . Exploded 2 | . . 2 1 Melee 1 | . . . 1 Uniques/NPCs Destroyed . | . . . . Combat | -11 -10 -9 -8 -------- Run | Yrd Mat Mat Mat Hostile Shots Fired 177 | . . 10 167 Missed 51 | . . 6 45 Hits 126 | . . 4 122 Projectile 126 | . . 4 122 AOE 1 | . . . 1 Critical Strikes 3 | . . . 3 Actively Blocked 1 | . . . 1 Damage Taken 1996 | . 43 92 1861 Core 557 | . . . 557 Absorbed by Shields . | . . . . Redirected to Shielding 273 | . . 39 234 Core Remaining (%) 100 | 100 100 100 . Volleys Fired 54 | . . 7 47 Largest 2 | . . 2 2 Hottest 120 | . . 60 120 Shots Fired 97 | . . 14 83 Gun . | . . . . Cannon 60 | . . . 60 Launcher 37 | . . 14 23 Special . | . . . . Kinetic . | . . . . Thermal 60 | . . . 60 Explosive 19 | . . 14 5 Electromagnetic 18 | . . . 18 Robot Hit Streak 5 | . . 1 5 Robot Miss Streak 5 | . . 3 5 Penetration Max . | . . . . Secondary Targets . | . . . . Shots Hit Robots 60 | . . 1 59 Core Hits 44 | . . 15 29 Critical Kills . | . . . . Critical Parts Destroyed 5 | . . . 5 Critical Strikes 5 | . . . 5 Smash 5 | . . . 5 Melee Attacks 21 | . . . 21 Impact 21 | . . . 21 Slashing . | . . . . Piercing . | . . . . Sneak Attacks 1 | . . . 1 Combat Hostiles . | . . . . Follow-up Attacks . | . . . . Damage Inflicted 3030 | . . 685 2345 Guns . | . . . . Cannons 763 | . . . 763 Explosions 1429 | . . 672 757 Melee 825 | . . . 825 Ramming 13 | . . 13 . Kinetic . | . . . . Thermal 815 | . . . 815 Explosive 762 | . . 672 90 Electromagnetic 615 | . . . 615 Impact 825 | . . . 825 Slashing . | . . . . Piercing . | . . . . Highest Corruption . | . . . . Average Corruption . | . . . . Corruption Purged . | . . . . Corruption Blocked . | . . . . Overload Shots . | . . . . Overflow Damage 462 | . . 13 449 Projectiles 17 | . . . 17 Explosions 85 | . . 13 72 Melee 360 | . . . 360 Knockbacks 1 | . . . 1 Impact 1 | . . . 1 Kinetic . | . . . . Secondary . | . . . . Self-Inflicted Damage 323 | . . 34 289 Shots 12 | . . 1 11 Rammed 2 | . . 2 . Targets Rammed 2 | . . 2 . Kicked . | . . . . Crushed . | . . . . Highest Temperature 377 | . . 33 377 Average Temperature 112 | . . 11 122 Received Heat Transfer 402 | . . 24 378 Effects 3 | . . . 3 Shutdowns 2 | . . . 2 Interference 1 | . . . 1 Siege Activations . | . . . . Martial Activations . | . . . . Shielding Activations . | . . . . Robots Disrupted . | . . . . Combat Hostiles . | . . . . Robots Corrupted 3 | . . . 3 Combat Hostiles 3 | . . . 3 Parts Fried 6 | . . . 6 Impact Corruptions 13 | . . . 13 Robots Melted . | . . . . Combat Hostiles . | . . . . Parts Melted . | . . . . Heat Transferred 1247 | . . . 1247 Parts Sabotaged . | . . . . Parts Stolen . | . . . . Parts Stripped . | . . . . Power Chain Reactions 5 | . . . 5 Alert | -11 -10 -9 -8 ------- Run | Yrd Mat Mat Mat Maximum Alert Level 1 | . . . 1 Low Security (%) 86 | 100 100 100 81 Level 1 13 | . . . 18 Level 2 . | . . . . Level 3 . | . . . . Level 4 . | . . . . Level 5 . | . . . . High Security . | . . . . Max Security . | . . . . Peak Influence 371 | . . 173 371 Initial 42 | . . . 42 Average 83 | . . 83 97 Influence Increases 1082 | . . 201 881 Destroy 0b10 Robot/C 500 | . . 120 380 Destroy 0b10 Robot/NC 50 | . . 10 40 Destroy Leader 106 | . . 32 74 Disable Machine 90 | . . . 90 Destroy Structure 126 | . . 39 87 Lose Combat Pursuer 210 | . . . 210 Influence Decreases 711 | . . 98 613 Entered New Map 61 | . . . 61 Time Decay 490 | . . 98 392 Lost Part 160 | . . . 160 Squads Dispatched 4 | . . . 4 Investigation 2 | . . . 2 Extermination . | . . . . Reinforcement 2 | . . . 2 Assault . | . . . . Garrison . | . . . . Intercept . | . . . . Searches Triggered . | . . . . Construction Impeded 1 | . . . 1 Haulers Reinforced . | . . . . Active Scanning Responses . | . . . . Cargo Convoy Interrupts . | . . . . Stealth | -11 -10 -9 -8 --------- Run | Yrd Mat Mat Mat Distress Signals 1 | . . . 1 Communications Jammed . | . . . . Distress Signals . | . . . . Times Spotted 46 | . . 8 38 Peak Tracking Total 7 | . . 5 7 Tactical Retreats 6 | . . . 6 Traps | -11 -10 -9 -8 ------- Run | Yrd Mat Mat Mat Traps Triggered 1 | . 1 . . Indirectly . | . . . . Trap Hack Attempts . | . . . . Triggered . | . . . . Disarmed . | . . . . Reprogrammed . | . . . . Reused . | . . . . Traps Extracted . | . . . . Installed . | . . . . Triggered . | . . . . Machines | -11 -10 -9 -8 ---------- Run | Yrd Mat Mat Mat Machines Disabled 6 | . . . 6 Max in Single Turn 1 | . . . 1 Machines Repaired . | . . . . Machines Dismantled . | . . . . Machines Sabotaged . | . . . . Overloaded Fab Kills . | . . . . Hacking | -11 -10 -9 -8 --------- Run | Yrd Mat Mat Mat Machines Accessed 3 | . . 2 1 Terminals 2 | . . 1 1 Fabricators . | . . . . Repair Stations 1 | . . 1 . Recycling Units . | . . . . Scanalyzers . | . . . . Garrison Access . | . . . . Total Hacks 4 | . . 3 1 Successful 3 | . . 2 1 Failed 1 | . . 1 . Catastrophic . | . . . . Database Lockouts . | . . . . Manual . | . . . . Terminals 2 | . . 1 1 Fabricators . | . . . . Repair Stations 2 | . . 2 . Recycling Units . | . . . . Scanalyzers . | . . . . Garrison Access . | . . . . Terminal Hacks 2 | . . 1 1 Record 2 | . . 1 1 Fabricator Hacks . | . . . . Repair Station Hacks 1 | . . 1 . Scan Component 1 | . . 1 . Recycling Unit Hacks . | . . . . Scanalyzer . | . . . . Garrison Access Hacks . | . . . . Unauthorized Hacks . | . . . . Terminals . | . . . . Fabricators . | . . . . Repair Stations . | . . . . Recycling Units . | . . . . Scanalyzers . | . . . . Garrison Access . | . . . . Data Cores Recovered . | . . . . Used . | . . . . Hacking Detections 1 | . . . 1 Full Trace Events . | . . . . Feedback Events . | . . . . Feedback Blocked . | . . . . Robot Schematics Acquired . | . . . . Robots Built . | . . . . Authchips . | . . . . Time . | . . . . Total Robot Build Rating . | . . . . Part Schematics Acquired . | . . . . Parts Built . | . . . . Authchips . | . . . . Time . | . . . . Total Part Build Rating . | . . . . Parts Repaired . | . . . . Time . | . . . . Parts Recycled . | . . . . Recycled Matter . | . . . . Retrieved Matter . | . . . . Retrieved Components . | . . . . Parts Scanalyzed . | . . . . Part Schematics Acquired . | . . . . Parts Damaged . | . . . . Bothacking | -11 -10 -9 -8 ------------ Run | Yrd Mat Mat Mat Used RIF Installer . | . . . . Robots Hacked . | . . . . Non-combat . | . . . . Combat . | . . . . Robot Hacks Applied . | . . . . Relay Couplers Released . | . . . . Fabnet Peak Effective % . | . . . . Robots Rewired . | . . . . Allies Hacked . | . . . . Hacks Repelled . | . . . . Allies | -11 -10 -9 -8 -------- Run | Yrd Mat Mat Mat Total Allies . | . . . . Largest Group . | . . . . Highest-Rated Group . | . . . . Highest-Rated Ally . | . . . . Total Orders . | . . . . Ally Attacks . | . . . . Total Damage . | . . . . Kills . | . . . . Allies Corrupted . | . . . . Allies Melted . | . . . . Intel | -11 -10 -9 -8 ------- Run | Yrd Mat Mat Mat Active Infowar (turns) 422 | . 72 251 99 Sensors 422 | . 72 251 99 Robot Analysis Total . | . . . . Derelict Logs Recovered . | . . . . Drone Launches . | . . . . Drone Recoveries . | . . . . Exploration | -11 -10 -9 -8 ------------- Run | Yrd Mat Mat Mat Turns Passed 1709 | 41 164 270 1234 Spaces Moved 1273 | 34 155 231 853 Core 22 | 6 . . 16 Treads . | . . . . Legs . | . . . . Wheels 1251 | 28 155 231 837 Hover . | . . . . Flight . | . . . . Fastest Speed 50 | 50 100 100 85 Average Speed 107 | 91 100 100 111 Slowest Speed 700 | 100 100 100 700 Overloaded Moves . | . . . . Propulsion Burnouts . | . . . . Robots Hopped . | . . . . Potential Cave-ins . | . . . . Cave-ins Triggered . | . . . . Exploration Rate (%) 26 | 3 45 17 39 Regions Visited 3 Branch Regions . Pre-discovered Areas . | . . . . Known Exits Taken . | . . . . Unknown Exits Taken 3 | 1 1 1 . Scrap Searched . | . . . . Spaces Dug . | . . . . Terrain Destroyed 147 | . . 47 100 Melee . | . . . . Projectile 15 | . . . 15 AOE 132 | . . 47 85 Terrain Rammed . | . . . . Walls Destroyed . | . . . . Machines Disabled . | . . . . Actions | -11 -10 -9 -8 --------- Run | Yrd Mat Mat Mat Total 1478 | 44 164 256 1014 Wait 38 | . . 2 36 Move 1270 | 33 154 230 853 Hop . | . . . . Pick Up 31 | 6 4 7 14 Fast Attach 6 | . . . 6 Attach 29 | 5 4 3 17 Detach 1 | . . . 1 Swap 8 | . . 2 6 Drop 18 | . 2 3 13 Fire 54 | . . 7 47 Melee 21 | . . . 21 Ram 2 | . . 2 . Kick . | . . . . Crush . | . . . . Escape Stasis . | . . . . Rewire . | . . . . Trap . | . . . . Miscellaneous . | . . . . Route ------- -11/Scrapyard -10/Materials (discovered 2 exits: *Mat / [*Min]) -9/Materials -8/Materials (discovered 1 exit: [*Fac]) History --------- Turn | Location | Event 5 | -11/Scrapyard | Discovered new exit (range 15) 42 | -11/Scrapyard | Entered Materials 109 | -10/Materials | Discovered new exit (range 14) 175 | -10/Materials | Discovered new exit (range 14) 206 | -10/Materials | Entered another Materials area 206 | -9/Materials | Evolved 2 slots: Power x1, Utility x1 307 | -9/Materials | Build established: Mutant 398 | -9/Materials | Discovered new exit (range 16) 476 | -9/Materials | Entered another Materials area 476 | -8/Materials | Evolved 2 slots: Power x1, Propulsion x1 1308 | -8/Materials | Lost 6 parts (1p1n4u) 1556 | -8/Materials | Discovered new exit (range 16) 1573 | -8/Materials | Core integrity fell below 50% 1703 | -8/Materials | Core integrity fell below 20% 1710 | -8/Materials | Destroyed by G-50 Soldier with Heavy Laser Last Messages --------------- K-01 Serf cleans the Fusion Modulator. G-47 Trooper suffers critical hit (Smash). Destroyed Imp. Heat Sink. G-47 Trooper system corrupted by crushing effect. Aluminum Leg fried. G-47 Trooper destroyed. Fusion Modulator explodes. G-47 Trooper destroyed. K-01 Serf destroyed. Terminal disabled. K-01 Serf collects debris. Sneak attack on K-01 Serf. K-01 Serf suffers critical hit (Smash). Destroyed Wheel. Destroyed Lgt. Ion Engine. Destroyed Wheel. K-01 Serf system corrupted by crushing effect. K-01 Serf destroyed. Map ----- +----------------------------------------------------+ | | | | | | | | | | | | | | | | | | | | | | | ?????????????????????????????????????????????????? | | ?????????????????????????????????????????????????? | | ?????????????????????????????????#####???????????? | | ?????????????????????????????????#"""#???????????? | | ????????????????##################"T"############# | | ????????????????# ! + | | ????????????????# ##?# ####### | | ????????????????# / ;#?# * """ #?????? | | ????????????????# % ;#?# *** """ #?????? | | ????????????????# ;### *** """ ####### | | ????????????????# ;;## # | | ????????????????# * ; # "" | | ????????????????# % ;;################! T" | | ?????????#/ ###;;;;;;;;;;# #????????# "" | | ???? %% @ #????????# | | ????< %%* #????????# | | ???? %=% ] #????????####### | | ?????##### ] ###+########## g =#??????????????? | | ?????????#####???????????????##/###??????????????? | | ???????????????????????????????? ???????????????? | | ????????????????????????????????? ?????????????? | | ?????????????????????????????????? #????????????? | | ??????????????????????????????????? #????????????? | | ????????????????????????????????????#????????????? | | ?????????????????????????????????????????????????? | | ?????????????????????????????????????????????????? | | ??????????????????????????????????????????????? | | ?????????????????????????????????????????????????? | | ?????????????????????????????????????????????????? | | ?????????????????????????????????????????????????? | | ?????????????????????????????????????????????????? | | ?????????????????????????????????????????????????? | | ?????????????????????????????????????????????????? | | ?????????????????????????????????????????????????? | | ?????????????????????????????????????????????????? | | ?????????????????????????????????????????????????? | | ?????????????????????????????????????????????????? | | ?????????????????????????????????????????????????? | | ?????????????????????????????????????????????????? | +----------------------------------------------------+ Best States ------------- Heat Dissipation 45 Energy Generation 32 Energy Capacity 600 Matter Stores 300 Matter Capacity 500 Sight Range 16 Robot Scan Range 14 Terrain Scan Density 10 Armor Coverage 150 Core Shielding 20 Weapon Shielding 66 Evasion (%) 43 Particle Charging 22 Defensive Hacking 10 Item Schematics ----------------- None Robot Schematics ------------------ None Fabricated ------------ Nothing Repaired ---------- Nothing Alien Tech Used ----------------- None Achievements -------------- None Challenges ------------ None Game ------ Seed CountertargetingLegSlayer Manual? 0 Play Time 00:26:15 Cumulative 3.5 hours Start 2025.09.02 @ 22:18:22 End 2025.09.03 @ 17:13:53 Sessions 4 Manual Loads 0 Difficulty Rogue Special Mode None Game No. 8 Rogue 8 Adventurer 0 Explorer 0 Win Type - Total 0 Types 0/0/0/0/0/0/0/0/0/0 Lore% 0 Gallery% 7 Achievement% 7 Wizard Run 0 Options --------- Layout 1 ASCII 0 Keyboard 0 Movement Mouse Keybinds 0 Fullscreen 1 Font 32/SmallcapsGlow Map View 50x35 Zoom Use 0% Tactical HUD 0 Map Filters NONE Filters NONE Steam 1 RUN: 20c2a25f-9f14-4a4e-bc50-d0d0561fe007